bitfinex/quotes_SOLUSD_20250930
["timestamp","ask_amount","ask_price","bid_price","bid_amount"]
[1759223901765,3.18681099,207.07,206.97,13.59559401]
[1759223901965,2.44346086,207.08,206.97,13.59559401]
[1759223902161,3.1868118,207.07,206.97,13.59559401]
[1759223902366,2.44346086,207.08,206.97,13.59559401]
[1759223902566,0.2,207.08,206.98,61.86676972]
[1759223903295,0.2,207.08,206.99,13.59559401]
[1759223903491,0.2,207.08,207.0,34.38]
[1759223904209,0.2,207.08,207.03,20.8]
[1759223904367,0.2,207.08,207.04,34.38]
[1759223904568,0.2,207.08,207.05,16.90412942]
[1759223911587,1e-08,207.08,207.06,13.59559401]
[1759223911896,1e-08,207.08,207.07,68.77559401]
[1759223912790,1e-08,207.08,207.07,73.60487879]
[1759223913088,1e-08,207.08,207.07,75.54065927]
[1759223919197,1e-08,207.08,207.07,27.56506526]
[1759223919398,1e-08,207.08,207.07,60.00928478]
[1759223920697,1e-08,207.08,207.07,61.94515894]
[1759223921989,1e-08,207.08,207.07,75.54075295]
[1759223924596,1e-08,207.08,207.07,54.74075295]
[1759223924788,0.2,207.15,207.1,20.8]
[1759223924988,0.2,207.15,207.11,34.36]
[1759223925365,0.2,207.15,207.11,36.29549947]
[1759223925980,0.2,207.15,207.11,34.36]
[1759223926571,0.2,207.15,207.12,16.89841637]
[1759223926775,0.2,207.15,207.13,34.36]
[1759223928982,0.2,207.15,207.14,4.82765279]
[1759223930169,0.2,207.15,207.14,19.35989508]
[1759223931291,0.2,207.15,207.14,4.82765279]
[1759223936819,0.2,207.15,207.13,34.36]
[1759223936989,0.2,207.15,207.13,39.18787881]
[1759223939186,0.2,207.15,207.14,34.36]
[1759223939798,0.2,207.15,207.14,39.18765279]
[1759223946690,0.2,207.15,207.14,4.82765279]
[1759223946894,0.2,207.15,207.14,39.16765279]
[1759223947316,0.2,207.15,207.14,4.82765279]
[1759223948893,0.2,207.15,207.14,39.16765279]
[1759223956720,1e-08,207.15,207.14,39.16765279]
[1759223957415,1e-08,207.16,207.14,39.16765279]
[1759223960415,20.8,207.28,207.14,39.16765279]
[1759223960416,7.26080584,207.34,207.14,75.37504874]
[1759223960610,0.2,207.34,207.18,20.8]
[1759223960812,1.43380465,207.27,207.19,34.34]
[1759223961017,1.43380465,207.26,207.19,34.34]
[1759223961218,1.43380465,207.26,207.2,16.89189188]
[1759223961419,1.43380465,207.26,207.21,34.34]
[1759223962712,1.43380465,207.27,207.22,16.89026155]
[1759223962911,1.43380465,207.26,207.23,34.34]
[1759223963113,1.43380465,207.25,207.22,16.89026155]
[1759223963314,1.43380465,207.24,207.23,34.34]
[1759223963726,1.43380465,207.24,207.22,16.89026155]
[1759223963727,1.43380465,207.24,207.22,4.82578901]
[1759223963911,5.02416658,207.29,207.23,34.34]
[1759223964110,0.2,207.29,207.23,34.34]
[1759223964908,0.2,207.29,207.24,4.82532329]
[1759223965105,1.43380465,207.25,207.24,4.82532329]
[1759223966233,1.43380465,207.26,207.24,16.88863153]
[1759223966417,0.2,207.29,207.25,34.34]
[1759223966623,1.43380465,207.27,207.25,34.34]
[1759223967025,0.2,207.29,207.25,34.34]
[1759223967437,1.63380465,207.29,207.25,34.34]
[1759223968105,0.2,207.29,207.26,16.88700182]
[1759223968310,0.2,207.29,207.27,34.34]
[1759223969728,0.2,207.29,207.28,4.82439212]
[1759223970541,1e-08,207.29,207.28,59.94439212]
[1759223972029,1e-08,207.29,207.28,73.53998613]
[1759223976248,0.2,207.34,207.32,20.8]
[1759223976432,0.2,207.34,207.33,34.32]
[1759223977356,0.2,207.34,207.33,39.14322866]
[1759223980363,0.2,207.34,207.33,4.82322866]
[1759223980741,0.2,207.34,207.24,15.52959618]
[1759223980929,0.2,207.34,207.25,39.14509047]
[1759223981126,0.2,207.34,207.25,51.20746537]
[1759223981734,0.2,207.34,207.25,75.33291772]
[1759223984444,12.25749011,207.34,207.25,4.82509047]
[1759223984643,12.25749011,207.34,207.23,39.16534597]
[1759223984644,1.43380465,207.27,207.23,39.16534597]
[1759223984965,1.43380465,207.27,207.14,3.86003035]
[1759223984966,1.43380465,207.24,207.18,4.82672072]
[1759223985167,1.43380465,207.23,207.17,32.54]
[1759223985535,1.43380465,207.22,207.17,32.54]
[1759223985736,1.43380465,207.2,207.17,32.54]
[1759223985936,13.59559401,207.28,207.17,32.54]
[1759223986441,17.0804884,207.34,207.17,32.54]
[1759223986442,1.43380465,207.26,207.18,16.89352253]
[1759223986653,1.43380465,207.28,207.18,16.89352253]
[1759223986837,1.43380465,207.29,207.18,16.89352253]
[1759223987860,1.43380465,207.29,207.18,41.02712615]
[1759223988249,20.8,207.3,207.18,41.02712615]
[1759223988451,1.43380465,207.29,207.18,41.02712615]
[1759223988869,1.43380465,207.28,207.18,41.02712615]
[1759223989571,20.8,207.3,207.18,41.02712615]
[1759223989756,1.43380465,207.3,207.21,20.8]
[1759223990068,1.43380465,207.3,207.22,34.38]
[1759223990961,34.39559401,207.34,207.22,34.38]
[1759223991173,1.43380465,207.3,207.22,34.38]
[1759223991465,1.43380465,207.29,207.23,16.8894465]
[1759223991769,1.43380465,207.28,207.23,16.8894465]
[1759223992951,1.43380465,207.27,207.23,16.8894465]
[1759223993152,1.43380465,207.26,207.23,39.16555614]
[1759223993547,13.59559401,207.34,207.23,51.2294465]
[1759223993755,1.43380465,207.31,207.23,51.2294465]
[1759223995577,22.23380465,207.32,207.23,51.2294465]
[1759223995883,0.1,207.36,207.23,51.2294465]
[1759223996182,1.43380465,207.33,207.23,51.2294465]
[1759223996868,20.8,207.34,207.23,75.35722722]
[1759223997069,1.43380465,207.34,207.23,75.35722722]
[1759223998376,1.43380465,207.33,207.23,80.17954794]
[1759223998555,4.92267906,207.36,207.23,75.35722722]
[1759223998755,1.43380465,207.31,207.23,41.01722722]
[1759223998963,1.43380465,207.31,207.24,34.36]
[1759223999878,1.43380465,207.31,207.25,16.88781664]
[1759224000583,1.43380465,207.3,207.26,34.34]
[1759224000951,1.43380465,207.31,207.26,34.34]
[1759224001460,4.92267906,207.36,207.26,34.34]
[1759224001664,1.43380465,207.3,207.26,34.34]
[1759224001860,1.43380465,207.29,207.25,34.34]
[1759224002473,1.43380465,207.3,207.25,34.34]
[1759224003259,1.43380465,207.29,207.25,34.34]
[1759224003682,1.43380465,207.3,207.25,34.34]
[1759224003885,4.82290376,207.35,207.26,16.88700182]
[1759224004056,1.43380465,207.31,207.26,16.88700182]
[1759224005681,1.43380465,207.32,207.26,16.88700182]
[1759224006060,20.9,207.36,207.26,16.88700182]
[1759224006262,1.43380465,207.35,207.26,41.01129015]
[1759224006476,0.1,207.36,207.26,41.01129015]
[1759224006679,1.53380465,207.36,207.26,41.01129015]
[1759224006877,0.1,207.36,207.29,20.8]
[1759224007083,0.1,207.36,207.3,34.32]
[1759224007971,0.1,207.36,207.31,16.88292894]
[1759224010169,0.1,207.36,207.31,41.00139886]
[1759224010976,0.1,207.36,207.31,16.88292894]
[1759224011570,0.1,207.36,207.31,41.00139886]
[1759224014990,0.1,207.36,207.32,34.32]
[1759224015187,0.1,207.36,207.33,34.32]
[1759224016801,0.1,207.36,207.34,4.82299604]
[1759224019876,0.1,207.36,207.34,19.06004498]
[1759224020568,1e-08,207.36,207.34,19.06004498]
[1759224023397,1e-08,207.36,207.35,47.89559401]
[1759224024495,1e-08,207.36,207.35,52.71835745]
[1759224025085,1e-08,207.36,207.35,18.41835745]
[1759224025385,1e-08,207.36,207.35,52.71835745]
[1759224026900,1e-08,207.36,207.35,185.71835745]
[1759224027203,1e-08,207.36,207.35,187.95449138]
[1759224027996,0.2,207.41,207.39,20.8]
[1759224028174,0.2,207.41,207.4,34.3]
[1759224028380,0.2,207.41,207.39,20.8]
[1759224028686,0.2,207.41,207.4,34.3]
[1759224030102,0.2,207.41,207.4,39.12160077]
[1759224030907,0.2,207.41,207.4,4.82160077]
[1759224031092,0.2,207.41,207.4,39.12160077]
[1759224033512,2.23613393,207.48,207.4,71.97560269]
[1759224033717,2.23613393,207.47,207.41,34.3]
[1759224034289,2.23613393,207.47,207.42,4.82113585]
[1759224034493,2.23613393,207.47,207.43,34.3]
[1759224035109,2.23613393,207.46,207.43,34.3]
[1759224035710,2.23613393,207.45,207.41,4.82133195]
[1759224035888,2.23613393,207.45,207.42,34.3]
[1759224036211,25.61964933,207.49,207.42,34.3]
[1759224036212,2.23613393,207.44,207.42,34.3]
[1759224036982,2.23613393,207.44,207.41,4.82133195]
[1759224037187,2.23613393,207.44,207.41,39.12133195]
[1759224037608,14.59870719,207.55,207.41,51.17475271]
[1759224037790,2.23613393,207.47,207.41,51.17475271]
[1759224037990,2.23613393,207.46,207.41,39.12133195]
[1759224038182,2.23613393,207.45,207.41,34.3]
[1759224038383,2.23613393,207.43,207.41,39.121327]
[1759224039310,2.23613393,207.44,207.41,39.121327]
[1759224039514,4.82025679,207.46,207.41,39.121327]
[1759224039714,2.23613393,207.44,207.41,39.121327]
[1759224039891,2.23613393,207.44,207.41,4.821327]
[1759224040090,2.23613393,207.44,207.4,39.1215773]
[1759224040304,2.23613393,207.43,207.4,39.1215773]
[1759224040482,4.82025679,207.46,207.4,39.1215773]
[1759224040483,2.23613393,207.44,207.4,39.1215773]
[1759224041083,2.23613393,207.43,207.4,39.1215773]
[1759224041688,2.23613393,207.42,207.36,4.82253086]
[1759224041910,2.23613393,207.4,207.37,34.3]
[1759224042109,16.87153529,207.45,207.37,34.3]
[1759224042316,13.59559401,207.44,207.37,34.3]
[1759224042502,2.23613393,207.41,207.37,34.3]
[1759224042703,2.23613393,207.4,207.37,34.3]
[1759224043613,2.23613393,207.4,207.38,4.82206577]
[1759224044010,2.23613393,207.41,207.37,39.12225388]
[1759224044211,2.23613393,207.4,207.37,39.12225388]
[1759224045330,2.23613393,207.38,207.35,4.82257924]
[1759224045923,4.82137426,207.41,207.35,4.82257924]
[1759224046222,2.23613393,207.36,207.34,4.82297241]
[1759224046734,2.23613393,207.35,207.33,4.82322774]
[1759224047440,4.82208423,207.38,207.33,4.82322774]
[1759224047930,2.23613393,207.34,207.32,34.3]
[1759224048136,2.23613393,207.35,207.32,39.12339466]
[1759224048328,2.23613393,207.36,207.32,39.12339466]
[1759224048709,2.23613393,207.34,207.32,34.3]
[1759224048917,2.23613393,207.35,207.32,34.3]
[1759224049310,2.23613393,207.35,207.32,39.12338847]
[1759224051533,2.23613393,207.36,207.32,39.12338847]
[1759224051729,2.23613393,207.43,207.32,39.12338847]
[1759224051938,2.23613393,207.45,207.33,13.59559401]
[1759224052951,2.23613393,207.45,207.32,51.18204175]
[1759224052952,2.23613393,207.44,207.32,75.29934832]
[1759224053142,2.23613393,207.43,207.32,75.29934832]
[1759224053742,20.8,207.45,207.32,75.29934832]
[1759224054042,2.23613393,207.43,207.32,75.29934832]
[1759224054245,20.8,207.47,207.32,75.29934832]
[1759224054459,2.23613393,207.43,207.32,75.29934832]
[1759224054818,2.23613393,207.42,207.32,75.29934832]
[1759224055345,2.23613393,207.4,207.33,34.3]
[1759224055559,2.23613393,207.4,207.34,16.88048615]
[1759224055919,4.82117897,207.42,207.34,16.88048615]
[1759224055920,2.23613393,207.38,207.35,34.3]
[1759224057236,2.23613393,207.39,207.35,34.3]
[1759224057823,2.23613393,207.4,207.36,4.82253086]
[1759224058636,23.03613393,207.43,207.36,16.87885802]
[1759224059058,2.23613393,207.41,207.36,16.87885802]
[1759224060360,2.23613393,207.4,207.36,16.87885802]
[1759224060523,20.8,207.43,207.36,16.87885802]
[1759224060524,2.23613393,207.43,207.36,16.87885802]
[1759224061350,2.23613393,207.42,207.36,16.87885802]
[1759224061935,2.23613393,207.41,207.36,16.87885802]
[1759224062135,2.23613393,207.39,207.37,34.3]
[1759224062437,2.23613393,207.38,207.34,4.82299604]
[1759224062627,2.23613393,207.37,207.34,39.12299604]
[1759224062827,2.23613393,207.4,207.34,51.18048615]
[1759224063229,2.23613393,207.39,207.34,51.18048615]
[1759224064162,37.59183568,207.44,207.34,51.18048615]
[1759224064331,2.23613393,207.4,207.34,51.18048615]
[1759224064838,2.23613393,207.39,207.34,51.18048615]
[1759224065322,12.04904184,207.49,207.34,51.18048615]
[1759224065521,2.23613393,207.43,207.34,51.18048615]
[1759224066332,2.23613393,207.41,207.34,51.18048615]
[1759224066963,2.23613393,207.39,207.35,34.3]
[1759224067323,2.23613393,207.39,207.34,16.88048615]
[1759224067527,2.23613393,207.39,207.35,34.3]
[1759224068259,2.23613393,207.39,207.36,4.82253086]
[1759224069458,2.23613393,207.38,207.36,4.82253086]
[1759224070749,2.23613393,207.38,207.35,4.82276344]
[1759224071882,2.23613393,207.39,207.35,16.87967204]
[1759224072281,2.23613393,207.41,207.35,16.87967204]
[1759224072429,20.8,207.42,207.35,16.87967204]
[1759224072633,2.23613393,207.42,207.35,16.87967204]
[1759224073272,2.23613393,207.41,207.35,16.87967204]
[1759224074253,1.43095713,207.41,207.35,16.87967204]
[1759224074767,1.43095713,207.42,207.35,16.87967204]
[1759224074940,1.43095713,207.43,207.35,16.87967204]
[1759224076666,20.8,207.47,207.35,40.99348925]
[1759224076857,1.43095713,207.46,207.35,40.99348925]
[1759224077176,1.43095713,207.46,207.36,13.59559401]
[1759224077350,1.43095713,207.47,207.37,34.28]
[1759224077552,13.59559401,207.5,207.37,34.28]
[1759224077877,13.59559401,207.52,207.38,13.59559401]
[1759224078053,1.43095713,207.48,207.38,34.39559401]
[1759224078252,1.43095713,207.49,207.38,34.39559401]
[1759224078650,20.8,207.51,207.38,34.39559401]
[1759224078983,1.43095713,207.49,207.39,40.98558271]
[1759224080137,20.8,207.51,207.39,40.98558271]
[1759224080362,1.43095713,207.49,207.39,40.98558271]
[1759224080562,1.43095713,207.5,207.39,40.98558271]
[1759224080950,22.23095713,207.51,207.39,40.98558271]
[1759224081756,20.8,207.51,207.39,40.98558271]
[1759224081973,4.91825944,207.55,207.39,40.98558271]
[1759224081974,1.43095713,207.52,207.4,13.59559401]
[1759224082142,1.43095713,207.52,207.41,34.28]
[1759224082464,1.43095713,207.51,207.41,34.28]
[1759224082862,1.43095713,207.51,207.42,16.87397549]
[1759224083236,1.43095713,207.52,207.42,16.87397549]
[1759224084068,1.43095713,207.52,207.43,34.28]
[1759224084279,1.43095713,207.52,207.42,16.87397549]
[1759224084483,1.43095713,207.51,207.42,12.05283964]
[1759224084783,1.43095713,207.51,207.43,34.28]
[1759224084978,1.43095713,207.52,207.42,12.05283964]
[1759224085187,1.43095713,207.52,207.43,34.28]
[1759224085483,1.43095713,207.52,207.44,34.28]
[1759224086375,1.43095713,207.51,207.45,16.87153529]
[1759224087691,1.43095713,207.51,207.45,51.15153529]
[1759224088266,1.43095713,207.5,207.45,39.10043865]
[1759224088463,1.43095713,207.49,207.45,39.10043865]
[1759224088986,1.43095713,207.48,207.45,4.82043865]
[1759224089282,1.43095713,207.49,207.45,4.82043865]
[1759224089486,1.43095713,207.5,207.45,4.82043865]
[1759224089661,1.43095713,207.49,207.45,4.82043865]
[1759224089862,1.43095713,207.49,207.44,4.82067103]
[1759224090277,1.43095713,207.49,207.44,16.87234862]
[1759224092057,1.43095713,207.5,207.44,16.87234862]
[1759224093786,1.43095713,207.49,207.44,16.87234862]
[1759224094179,1.43095713,207.48,207.44,4.82067103]
[1759224094658,1.43095713,207.49,207.44,4.82067103]
[1759224095597,1.43095713,207.49,207.44,16.87234862]
[1759224095763,20.8,207.52,207.44,16.87234862]
[1759224095957,1.43095713,207.5,207.44,16.87234862]
[1759224096479,1.43095713,207.5,207.45,34.26]
[1759224097266,1.43095713,207.5,207.46,4.8202063]
[1759224097982,1.43095713,207.5,207.46,16.87072206]
[1759224099087,1.43095713,207.49,207.46,4.8202063]
[1759224099582,20.8,207.52,207.46,4.8202063]
[1759224099882,1.43095713,207.49,207.46,4.8202063]
[1759224100190,1.43095713,207.49,207.45,4.82043865]
[1759224102175,1.43095713,207.47,207.45,4.82043865]
[1759224102493,1.43095713,207.48,207.45,4.82043865]
[1759224104976,1.43095713,207.49,207.45,4.82043865]
[1759224106683,1.43095713,207.5,207.45,4.82043865]
[1759224106868,1.43095713,207.5,207.45,16.87153529]
[1759224107490,1.43095713,207.51,207.45,16.87153529]
[1759224107785,1.43095713,207.47,207.45,16.87153529]
[1759224109199,18.41417445,207.53,207.45,16.87153529]
[1759224109381,1.43095713,207.47,207.45,16.87153529]
[1759224109883,1.43095713,207.47,207.45,4.82043865]
[1759224110580,20.8,207.52,207.45,4.82043865]
[1759224110770,1.43095713,207.47,207.45,4.82043865]
[1759224117087,20.8,207.52,207.45,16.87153529]
[1759224117262,1.43095713,207.47,207.45,16.87153529]
[1759224119795,25.6188888,207.52,207.45,16.87153529]
[1759224119991,1.43095713,207.47,207.45,16.87153529]
[1759224120191,1.43095713,207.48,207.45,16.87153529]
[1759224121001,1.43095713,207.49,207.45,16.87153529]
[1759224121488,20.8,207.52,207.45,16.87153529]
[1759224121690,1.43095713,207.49,207.45,16.87153529]
[1759224124799,20.8,207.52,207.45,16.87153529]
[1759224125003,1.43095713,207.49,207.45,16.87153529]
[1759224125506,0.1,207.55,207.45,16.87153529]
[1759224125711,1.43095713,207.52,207.45,16.87153529]
[1759224125998,20.8,207.54,207.45,16.87153529]
[1759224126198,1.43095713,207.53,207.45,16.87153529]
[1759224126416,0.1,207.55,207.45,16.87153529]
[1759224126590,1.43095713,207.52,207.45,16.87153529]
[1759224126790,1.43095713,207.51,207.45,16.87153529]
[1759224128393,1.43095713,207.5,207.45,16.87153529]
[1759224128892,0.1,207.55,207.45,16.87153529]
[1759224129199,1.43095713,207.5,207.45,16.87153529]
[1759224129780,0.1,207.55,207.45,16.87153529]
[1759224129989,1.43095713,207.48,207.46,34.24]
[1759224130884,1.43095713,207.48,207.47,4.81997397]
[1759224132394,1.43095713,207.5,207.47,4.81997397]
[1759224133280,4.9181661,207.55,207.47,16.8699089]
[1759224133687,1.43095713,207.5,207.47,16.8699089]
[1759224134095,1.43095713,207.52,207.47,16.8699089]
[1759224136207,0.1,207.55,207.47,16.8699089]
[1759224136389,2.23347639,207.51,207.47,16.8699089]
[1759224136718,0.1,207.55,207.47,4.81997397]
[1759224136719,2.23347639,207.48,207.47,4.81997397]
[1759224137018,2.23347639,207.48,207.45,53.51035955]
[1759224137192,2.23347639,207.46,207.45,53.51035955]
[1759224137389,2.23347639,207.47,207.45,39.04039384]
[1759224137592,2.23347639,207.48,207.45,51.09149048]
[1759224138887,2.23347639,207.48,207.45,53.65521856]
[1759224141303,2.23347639,207.51,207.45,53.65521856]
[1759224141605,2.23347639,207.52,207.45,65.7063152]
[1759224144611,2.23347639,207.51,207.45,65.7063152]
[1759224145311,2.23347639,207.5,207.46,34.22]
[1759224145809,4.81862554,207.53,207.46,34.22]
[1759224146018,2.23347639,207.5,207.46,34.22]
[1759224146206,2.23347639,207.48,207.45,14.61482472]
[1759224146404,2.23347639,207.48,207.45,4.82035597]
[1759224146605,25.61859133,207.53,207.45,19.24541539]
[1759224146818,2.23347639,207.5,207.45,4.82035597]
[1759224147016,2.23347639,207.51,207.45,4.82035597]
[1759224147518,2.23347639,207.51,207.45,16.87145261]
[1759224147720,2.23347639,207.52,207.45,16.87145261]
[1759224148015,2.23347639,207.52,207.46,34.22]
[1759224148242,20.9,207.55,207.46,34.22]
[1759224148417,20.9,207.55,207.47,4.81997397]
[1759224148418,25.71811748,207.55,207.47,4.81997397]
[1759224148620,2.23347639,207.52,207.47,16.8699089]
[1759224149716,2.23347639,207.52,207.47,12.04993493]
[1759224149924,2.23347639,207.52,207.48,34.22]
[1759224150295,2.23347639,207.49,207.45,14.15707027]
[1759224150498,2.23347639,207.48,207.43,16.87305712]
[1759224150720,2.23347639,207.49,207.43,16.87305712]
[1759224151817,4.81881264,207.52,207.43,16.87305712]
[1759224151993,2.23347639,207.49,207.43,16.87305712]
[1759224153298,4.81881264,207.52,207.43,16.87305712]
[1759224153494,2.23347639,207.5,207.43,16.87305712]
[1759224155028,2.23347639,207.49,207.43,16.87305712]
[1759224155510,4.81911032,207.51,207.43,16.87305712]
[1759224155715,2.23347639,207.49,207.43,16.87305712]
[1759224159612,2.23347639,207.49,207.43,4.82090343]
[1759224160735,2.23347639,207.47,207.43,4.82090343]
[1759224161047,4.81928485,207.5,207.42,39.04109573]
[1759224161048,2.23347639,207.48,207.42,39.04109573]
[1759224162151,2.23347639,207.49,207.42,51.09393537]
[1759224162350,25.61862331,207.53,207.42,51.09393537]
[1759224162532,2.23347639,207.5,207.42,51.09393537]
[1759224163280,2.23347639,207.5,207.43,34.2]
[1759224163426,2.23347639,207.5,207.42,16.87393537]
[1759224163622,2.23347639,207.5,207.44,34.2]
[1759224163854,2.23347639,207.5,207.42,12.05283964]
[1759224164152,4.81911704,207.51,207.43,34.2]
[1759224164339,2.23347639,207.48,207.43,34.2]
[1759224164539,2.23347639,207.49,207.44,34.2]
[1759224165845,2.23347639,207.49,207.41,16.87478906]
[1759224166049,2.23347639,207.49,207.45,4.82032151]
[1759224166453,2.23347639,207.49,207.45,39.02032151]
[1759224166624,2.23347639,207.48,207.45,34.2]
[1759224167358,2.23347639,207.48,207.45,39.02034448]
[1759224167855,2.23347639,207.49,207.45,39.02034448]
[1759224168056,16.86518772,207.53,207.45,39.02034448]
[1759224168262,2.23347639,207.49,207.45,39.02034448]
[1759224169361,2.23347639,207.47,207.43,34.2]
[1759224169545,2.23347639,207.46,207.43,34.2]
[1759224170549,2.23347639,207.47,207.43,39.0208191]
[1759224170749,20.8,207.54,207.43,51.07307769]
[1759224170952,23.03347639,207.54,207.43,51.07307769]
[1759224171954,23.03347639,207.54,207.43,51.07307769]
[1759224172160,2.23347639,207.53,207.43,51.07307769]
[1759224175232,0.1,207.55,207.45,16.87153529]
[1759224175438,2.33347639,207.55,207.45,16.87153529]
[1759224175639,2.33347639,207.55,207.45,20.08671732]
[1759224176364,2.33347639,207.55,207.45,16.87153529]
[1759224176667,2.33347639,207.55,207.45,36.15328993]
[1759224177639,2.33347639,207.55,207.45,40.97372858]
[1759224178142,2.23347639,207.54,207.45,40.97372858]
[1759224185798,2.33347639,207.55,207.46,34.18]
[1759224186269,2.23347639,207.54,207.46,34.18]
[1759224187163,0.1,207.55,207.47,13.59559401]
[1759224187376,0.1,207.55,207.49,20.8]
[1759224187551,0.1,207.55,207.5,34.18]
[1759224187942,0.1,207.55,207.51,16.86665702]
[1759224190790,0.1,207.55,207.51,4.81904486]
[1759224191090,2.33347639,207.55,207.51,38.97904486]
[1759224191285,0.1,207.55,207.51,38.97904486]
[1759224192566,0.1,207.55,207.51,51.02665702]
[1759224195571,0.1,207.55,207.54,20.8]
[1759224195883,0.1,207.55,207.54,54.96]
[1759224197279,0.1,207.55,207.54,59.77834827]
[1759224197965,0.1,207.55,207.54,25.61834827]
[1759224198273,0.1,207.55,207.54,59.77834827]
[1759224199993,0.1,207.55,207.54,38.97834827]
[1759224201084,0.1,207.55,207.54,25.61834827]
[1759224201396,0.1,207.55,207.54,59.75834827]
[1759224202295,0.1,207.57,207.54,71.80421894]
[1759224207304,0.1,207.57,207.54,37.66421894]
[1759224207605,0.1,207.57,207.55,34.14]
[1759224208328,0.1,207.57,207.56,4.81788398]
[1759224227523,0.2,207.62,207.59,20.8]
[1759224227728,0.2,207.62,207.6,34.1]
[1759224230518,0.2,207.62,207.61,4.81672366]
[1759224236940,0.2,207.62,207.61,14.82936731]
[1759224237320,0.2,207.62,207.59,38.91704047]
[1759224240142,0.2,207.62,207.59,34.1]
[1759224240330,0.2,207.62,207.59,14.34439803]
[1759224240530,1.42806297,207.61,207.56,38.89786269]
[1759224241419,5.01656248,207.62,207.56,38.89786269]
[1759224241615,1.42806297,207.61,207.56,38.89786269]
[1759224242847,1.62806297,207.62,207.56,38.89786269]
[1759224243048,0.2,207.62,207.56,50.94257265]
[1759224244147,0.2,207.62,207.56,65.70746462]
[1759224244947,1.62806297,207.62,207.56,65.70746462]
[1759224245132,1.42806297,207.61,207.56,53.66275466]
[1759224245333,1.42806297,207.61,207.56,14.76489197]
[1759224245535,1.42806297,207.61,207.56,4.81772915]
[1759224245734,1.62806297,207.62,207.56,4.81772915]
[1759224245940,1.42806297,207.61,207.56,4.81772915]
[1759224246745,1.62806297,207.62,207.56,4.81772915]
[1759224247438,1.62806297,207.62,207.56,16.86243911]
[1759224247634,0.2,207.62,207.56,16.86243911]
[1759224248040,0.2,207.62,207.56,31.42174031]
[1759224248937,1.62806297,207.62,207.56,19.37703035]
[1759224249247,1.42806297,207.61,207.56,19.37703035]
[1759224249451,1.62806297,207.62,207.56,19.37703035]
[1759224250737,1.42806297,207.6,207.56,19.37703035]
[1759224251253,1.42806297,207.61,207.56,19.37703035]
[1759224252431,1.42806297,207.6,207.56,19.37703035]
[1759224252637,1.42806297,207.59,207.56,19.37703035]
[1759224252938,1.42806297,207.6,207.56,19.37703035]
[1759224254352,1.42806297,207.58,207.56,14.5593012]
[1759224254656,1.42806297,207.58,207.54,4.81814899]
[1759224255039,1.42806297,207.59,207.54,4.81814899]
[1759224255632,1.42806297,207.59,207.53,16.8650271]
[1759224256328,1.42806297,207.59,207.53,31.05573686]
[1759224257044,1.42806297,207.58,207.53,31.05573686]
[1759224257541,1.42806297,207.55,207.53,14.19070976]
[1759224257855,1.42806297,207.54,207.52,4.81880396]
[1759224258225,2.23296105,207.55,207.52,4.81880396]
[1759224258746,2.23296105,207.55,207.5,12.04782433]
[1759224258747,2.23296105,207.54,207.5,16.86710143]
[1759224258928,14.19070976,207.6,207.51,34.06]
[1759224259131,13.79559401,207.62,207.51,34.06]
[1759224259132,2.23296105,207.59,207.51,34.06]
[1759224259468,2.23296105,207.59,207.52,14.19070976]
[1759224260248,7.0500353,207.6,207.52,16.86584425]
[1759224260451,2.23296105,207.59,207.52,16.86584425]
[1759224260958,21.0,207.62,207.52,16.86584425]
[1759224261161,2.23296105,207.59,207.52,31.35544795]
[1759224261734,2.23296105,207.58,207.52,16.86584425]
[1759224261946,4.81674987,207.61,207.52,20.09053045]
[1759224262162,2.23296105,207.58,207.52,20.09053045]
[1759224262361,2.23296105,207.58,207.52,16.86584425]
[1759224262561,4.8174676,207.58,207.52,4.81881264]
[1759224262759,2.23296105,207.55,207.52,4.81881264]
[1759224263135,2.23296105,207.55,207.51,4.81903659]
[1759224264144,2.23296105,207.56,207.51,4.81903659]
[1759224264348,2.23296105,207.56,207.5,4.8192771]
[1759224264676,2.23296105,207.55,207.5,4.8192771]
[1759224266439,2.23296105,207.56,207.5,4.8192771]
[1759224267069,2.23296105,207.57,207.5,16.86746987]
[1759224269267,14.49170349,207.6,207.5,31.46284229]
[1759224269565,2.23296105,207.61,207.5,31.46284229]
[1759224269779,2.23296105,207.6,207.51,14.48890391]
[1759224272469,2.23296105,207.59,207.52,16.86584425]
[1759224272769,2.23296105,207.59,207.53,34.06]
[1759224273065,2.23296105,207.6,207.53,34.06]